fUSD/lending_fUSD_20240428
["ID","MTS","AMOUNT","RATE_DAILY","PERIOD"]
[41721,1714331543829,-500.0,0.00014246,2]
[41723,1714331543848,-628.44,0.00014246,2]
[41725,1714331543868,-500.0,0.00014246,2]
[41727,1714331543886,-561.86,0.00014246,2]
[41729,1714331543905,-500.0,0.00014246,2]
[41731,1714331543924,-500.0,0.00014246,2]
[41733,1714331543944,-500.0,0.00014246,2]
[41735,1714331543964,-500.0,0.00014246,2]
[41737,1714331543984,-500.0,0.00014246,2]
[41738,1714331543994,-500.0,0.00014246,2]
[41739,1714331544004,-646.9,0.00014246,2]
[41740,1714331544014,-613.01586214,0.00014246,2]
[41741,1714331544023,-559.54,0.00014246,2]
[41742,1714331544033,-500.0,0.00014246,2]
[41743,1714331544042,-588.44,0.00014246,2]
[41745,1714331544061,-500.0,0.00014246,2]
[41747,1714331544080,-627.25,0.00014246,2]
[41748,1714331544090,-888.38,0.00014246,2]
[41749,1714331544100,-573.36,0.00014246,2]
[41750,1714331544109,-500.0,0.00014246,2]
[41751,1714331544119,-565.43,0.00014246,2]
[41752,1714331544128,-596.12,0.00014246,2]
[41753,1714331544138,-700.29,0.00014246,2]
[41755,1714331544158,-544.68,0.00014246,2]
[41757,1714331544176,-500.0,0.00014246,2]
[41759,1714331544196,-500.0,0.00014246,2]
[41761,1714331544215,-601.85,0.00014246,2]
[41762,1714331544225,-500.0,0.00014246,2]
[41763,1714331544234,-708.42,0.00014246,2]
[41764,1714331544354,-500.0,0.00014246,2]
[41765,1714331544364,-500.0,0.00014246,2]
[41766,1714331544380,-500.0,0.00014246,2]
[41767,1714331544390,-500.0,0.00014246,2]
[41768,1714331544400,-520.06,0.00014246,2]
[41769,1714331544411,-371.75956388,0.00014246,2]
[41771,1714331544431,-500.0,0.00014246,2]
[41773,1714331544451,-979.76,0.00014246,2]
[41775,1714331544470,-662.94,0.00014246,2]
[41777,1714331544489,-500.0,0.00014246,2]
[41779,1714331544509,-551.42,0.00014246,2]
[41781,1714331544528,-511.71,0.00014246,2]
[41783,1714331544549,-913.43,0.00014246,2]
[41785,1714331544567,-540.89,0.00014246,2]
[41787,1714331544586,-500.0,0.00014246,2]
[41789,1714331544605,-717.54,0.00014246,2]
[41791,1714331544623,-500.0,0.00014246,2]
[41793,1714331544643,-500.0,0.00014246,2]
[41795,1714331544662,-500.0,0.00014246,2]
[41797,1714331544680,-996.75,0.00014246,2]
[41799,1714331544699,-595.66,0.00014246,2]
[41801,1714331544719,-500.0,0.00014246,2]
[41803,1714331544738,-781.66,0.00014246,2]
[41805,1714331544757,-604.53,0.00014246,2]
[41807,1714331544775,-383.63,0.00014246,2]
[41809,1714331544795,-500.0,0.00014246,2]
[41811,1714331544815,-1007.48,0.00014246,2]
[41813,1714331544836,-532.51,0.00014246,2]
[41815,1714331544856,-986.84,0.00014246,2]
[41817,1714331544874,-500.0,0.00014246,2]
[41819,1714331544893,-805.9,0.00014246,2]
[41821,1714331544912,-500.0,0.00014246,2]
[41823,1714331544932,-1492.28,0.00014246,2]
[41825,1714331544952,-622.52,0.00014246,2]
[41827,1714331544971,-1102.77,0.00014246,2]
[41829,1714331544989,-2683.52,0.00014246,2]
[41831,1714331545008,-757.63,0.00014246,2]
[41833,1714331545027,-1071.68,0.00014246,2]
[41835,1714331545046,-1126.91,0.00014246,2]
[41837,1714331545067,-768.45,0.00014246,2]
[41839,1714331545087,-500.0,0.00014246,2]
[41841,1714331545106,-1727.07,0.00014246,2]
[41843,1714331545125,-500.0,0.00014246,2]
[41845,1714331545146,-2375.71,0.00014246,2]
[41847,1714331545165,-768.05,0.00014246,2]
[41849,1714331545186,-1119.03,0.00014246,2]
[41851,1714331545206,-1829.87,0.00014246,2]
[41853,1714331545225,-555.53,0.00014246,2]
[41855,1714331545246,-500.0,0.00014246,2]
[41857,1714331545267,-2951.91,0.00014246,2]
[41859,1714331545286,-1806.02,0.00014246,2]
[41861,1714331545305,-500.0,0.00014246,2]
[41863,1714331545324,-16629.27,0.00014246,2]
[41865,1714331545343,-500.0,0.00014246,2]
[41867,1714331545363,-850.01,0.00014246,2]
[41869,1714331545387,-2107.3,0.00014246,2]
[41871,1714331545407,-863.14,0.00014246,2]
[41873,1714331545427,-500.0,0.00014246,2]
[41875,1714331545445,-1145.96,0.00014246,2]
[41877,1714331545466,-823.49,0.00014246,2]
[41879,1714331545484,-500.0,0.00014246,2]
[41881,1714331545504,-632.02,0.00014246,2]
[41883,1714331545523,-1251.88,0.00014246,2]
[41885,1714331545543,-1301.64,0.00014246,2]
[41886,1714331545552,-558.43,0.00014246,2]
[41887,1714331545562,-1459.2,0.00014246,2]
[41888,1714331545572,-559.47,0.00014246,2]
[41889,1714331545582,-900.56,0.00014246,2]
[41890,1714331545591,-394.71962039,0.00014246,2]
[41891,1714331545601,-500.0,0.00014246,2]
[41892,1714331545610,-3164.21,0.00014246,2]
[41893,1714331545620,-870.22,0.00014246,2]
[41894,1714331545629,-760.17,0.00014246,2]
[41895,1714331545639,-812.36,0.00014246,2]
[41897,1714331545658,-1319.84,0.00014246,2]
[41898,1714331545668,-856.74,0.00014246,2]
[41899,1714331545677,-532.65,0.00014246,2]
[41901,1714331545697,-625.97,0.00014246,2]
[41903,1714331545716,-5810.04,0.00014246,2]
[41905,1714331545735,-1243.71,0.00014246,2]
[41907,1714331545755,-774.93,0.00014246,2]
[41909,1714331545774,-2615.87,0.00014246,2]
[41911,1714331545793,-956.53,0.00014246,2]
[41913,1714331545812,-813.94,0.00014246,2]
[41915,1714331545832,-694.2,0.00014246,2]
[41917,1714331545851,-500.0,0.00014246,2]
[41919,1714331545870,-613.08,0.00014246,2]
[41921,1714331545889,-500.0,0.00014246,2]
[41923,1714331545909,-1711.83,0.00014246,2]
[41925,1714331545927,-1211.25,0.00014246,2]
[41927,1714331545947,-1062.05,0.00014246,2]
[41929,1714331545966,-500.0,0.00014246,2]
[41931,1714331545985,-829.71,0.00014246,2]
[41933,1714331546004,-579.0,0.00014246,2]
[41935,1714331546024,-500.0,0.00014246,2]
[41937,1714331546044,-3800.95,0.00014246,2]
[41938,1714331546054,-509.12,0.00014246,2]
[41939,1714331546063,-1489.82,0.00014246,2]
[41941,1714331546084,-500.0,0.00014246,2]
[41942,1714331546094,-2292.13,0.00014246,2]
[41943,1714331546103,-500.0,0.00014246,2]
[41944,1714331546113,-894.45,0.00014246,2]
[41945,1714331546123,-11916.14,0.00014246,2]
[41946,1714331546132,-706.5,0.00014246,2]
[41947,1714331546142,-774.47,0.00014246,2]
[41949,1714331546161,-973.0,0.00014246,2]
[41950,1714331546170,-1126.83,0.00014246,2]
[41951,1714331546180,-917.33,0.00014246,2]
[41952,1714331546189,-672.42,0.00014246,2]
[41953,1714331546199,-5235.42,0.00014246,2]
[41954,1714331546208,-1242.59,0.00014246,2]
[41955,1714331546218,-1138.49,0.00014246,2]
[41956,1714331546227,-500.0,0.00014246,2]
[41957,1714331546238,-500.0,0.00014246,2]
[41958,1714331546248,-1401.31,0.00014246,2]
[41959,1714331546258,-500.0,0.00014246,2]
[41960,1714331546267,-500.0,0.00014246,2]
[41961,1714331546276,-860.55,0.00014246,2]
[41962,1714331546286,-977.7,0.00014246,2]
[41963,1714331546297,-1049.2,0.00014246,2]
[41964,1714331546309,-6674.97,0.00014246,2]
[41965,1714331546321,-524.08,0.00014246,2]
[41966,1714331546332,-16083.09,0.00014246,2]
[41967,1714331546342,-723.16,0.00014246,2]
[41969,1714331546360,-1549.43,0.00014246,2]
[41971,1714331546381,-500.0,0.00014246,2]
[41973,1714331546400,-1266.3,0.00014246,2]
[41975,1714331546421,-1185.86,0.00014246,2]
[41977,1714331546439,-2988.7,0.00014246,2]
[41979,1714331546462,-1057.63,0.00014246,2]
[41981,1714331546481,-1206.57,0.00014246,2]
[41983,1714331546779,-1600.41,0.00014246,2]
[41985,1714331546797,-3105.73,0.00014246,2]
[41987,1714331546816,-3774.23,0.00014246,2]
[41989,1714331546835,-897.97,0.00014246,2]
[41991,1714331546854,-566.88,0.00014246,2]
[41993,1714331546873,-1962.38,0.00014246,2]
[41995,1714331546891,-2736.52,0.00014246,2]
[41997,1714331546911,-3862.59,0.00014246,2]
[41999,1714331546929,-678.26,0.00014246,2]
[42001,1714331546948,-2897.29,0.00014246,2]
[42003,1714331546966,-640.18,0.00014246,2]
[42004,1714331546975,-1204.37,0.00014246,2]
[42005,1714331546985,-1288.39,0.00014246,2]
[42006,1714331546994,-20011.43,0.00014246,2]
[42007,1714331547003,-500.0,0.00014246,2]
[42008,1714331547012,-500.0,0.00014246,2]
[42009,1714331547022,-1538.14,0.00014246,2]
[42010,1714331547031,-8592.95,0.00014246,2]
[42011,1714331547041,-5719.97,0.00014246,2]
[42012,1714331547051,-529.13,0.00014246,2]
[42013,1714331547060,-500.0,0.00014246,2]
[42014,1714331547070,-500.0,0.00014246,2]
[42015,1714331547080,-765.55,0.00014246,2]
[42016,1714331547089,-808.74,0.00014246,2]
[42017,1714331547099,-1086.25,0.00014246,2]
[42018,1714331547108,-325.77,0.00014246,2]
[42019,1714331547118,-500.0,0.00014246,2]
[42020,1714331547127,-150.0,0.00014274,2]
[42021,1714331547136,-257.08033486,0.0001429,7]
[42022,1714331547145,-328.71506121,0.00014298,2]
[42023,1714331547155,-201.0,0.000143,2]
[42024,1714331547164,-260.0,0.000143,2]
[42025,1714331547173,-150.0,0.00014351,2]
[42026,1714331547183,-655.9,0.0001436,3]
[42027,1714331547192,-328.71506121,0.0001439,2]
[42028,1714331547202,-150.0,0.00014445,2]
[42029,1714331547211,-328.71506121,0.00014482,2]
[42030,1714331547220,-150.0,0.0001449,2]
[42031,1714331547230,-150.0,0.00014499,2]
[42033,1714331547249,-625.22,0.0001452,2]
[42035,1714331547268,-500.0,0.0001452,2]
[42037,1714331547286,-500.0,0.0001452,2]
[42039,1714331547305,-529.75,0.0001452,2]
[42041,1714331547324,-597.62,0.0001452,2]
[42043,1714331547343,-500.0,0.0001452,2]
[42045,1714331547362,-500.0,0.0001452,2]
[42047,1714331547384,-500.0,0.0001452,2]
[42049,1714331547402,-610.03,0.0001452,2]
[42051,1714331547423,-500.0,0.0001452,2]
[42053,1714331547442,-500.0,0.0001452,2]
[42055,1714331547462,-500.0,0.0001452,2]
[42057,1714331547480,-584.81,0.0001452,2]
[42059,1714331547499,-500.0,0.0001452,2]
[42061,1714331547518,-500.0,0.0001452,2]
[42063,1714331547537,-500.0,0.0001452,2]
[42065,1714331547556,-349.73293308,0.0001452,2]
[42067,1714331547575,-550.86,0.0001452,2]
[42069,1714331547595,-500.0,0.0001452,2]
[42071,1714331547614,-652.17,0.0001452,2]
[42073,1714331547633,-666.44,0.0001452,2]
[42075,1714331547652,-500.0,0.0001452,2]
[42077,1714331547671,-566.45,0.0001452,2]
[42078,1714331547681,-500.0,0.0001452,2]
[42079,1714331547690,-514.37,0.0001452,2]
[42080,1714331547700,-321.75541324,0.0001452,2]
[42081,1714331547709,-500.0,0.0001452,2]
[42083,1714331547729,-770.94,0.0001452,2]
[42085,1714331547748,-500.0,0.0001452,2]
[42087,1714331547766,-233.15548593,0.0001452,2]
[42089,1714331547784,-500.0,0.0001452,2]
[42091,1714331547803,-596.99,0.0001452,2]
[42093,1714331547822,-259.280694,0.0001452,2]
[42095,1714331547841,-601.69787047,0.0001452,2]
[42097,1714331547860,-574.66,0.0001452,2]
[42099,1714331547879,-624.41,0.0001452,2]
[42101,1714331547897,-557.05,0.0001452,2]
[42103,1714331547916,-500.0,0.0001452,2]
[42105,1714331547936,-500.0,0.0001452,2]
[42107,1714331547955,-533.0,0.0001452,2]
[42109,1714331547974,-649.51,0.0001452,2]
[42110,1714331547983,-500.0,0.0001452,2]
[42111,1714331547992,-899.28,0.0001452,2]
[42112,1714331548002,-500.0,0.0001452,2]
[42113,1714331548012,-500.0,0.0001452,2]
[42115,1714331548031,-500.0,0.0001452,2]
[42116,1714331548041,-1142.31,0.0001452,2]
[42117,1714331548050,-500.0,0.0001452,2]
[42119,1714331548069,-581.74,0.0001452,2]
[42121,1714331548089,-783.25,0.0001452,2]
[42123,1714331548108,-500.0,0.0001452,2]
[42125,1714331548127,-507.09,0.0001452,2]
[42127,1714331548146,-1106.8,0.0001452,2]
[42129,1714331548166,-668.56,0.0001452,2]
[42131,1714331548185,-500.0,0.0001452,2]
[42133,1714331548203,-513.17,0.0001452,2]
[42135,1714331548224,-1610.42,0.0001452,2]
[42137,1714331548242,-500.0,0.0001452,2]
[42138,1714331548251,-643.86,0.0001452,2]
[42139,1714331548262,-500.0,0.0001452,2]
[42140,1714331548271,-666.45,0.0001452,2]
[42141,1714331548281,-500.0,0.0001452,2]
[42142,1714331548291,-513.55,0.0001452,2]
[42143,1714331548300,-1577.52,0.0001452,2]
[42144,1714331548310,-728.71,0.0001452,2]
[42145,1714331548319,-500.0,0.0001452,2]
[42146,1714331548330,-803.65,0.0001452,2]
[42147,1714331548339,-615.66,0.0001452,2]
[42148,1714331548348,-500.0,0.0001452,2]
[42149,1714331548358,-575.03,0.0001452,2]
[42150,1714331548368,-542.89,0.0001452,2]
[42151,1714331548380,-538.42,0.0001452,2]
[42152,1714331548390,-1308.96,0.0001452,2]
[42153,1714331548399,-772.95,0.0001452,2]
[42155,1714331548419,-513.25,0.0001452,2]
[42157,1714331548438,-645.92,0.0001452,2]
[42159,1714331548460,-500.0,0.0001452,2]
[42161,1714331548478,-592.76,0.0001452,2]
[42162,1714331548487,-623.57,0.0001452,2]
[42163,1714331548496,-765.46,0.0001452,2]
[42165,1714331548514,-500.0,0.0001452,2]
[42167,1714331548533,-307.27751016,0.0001452,2]
[42169,1714331548552,-535.83,0.0001452,2]
[42171,1714331548571,-283.40781747,0.0001452,2]
[42173,1714331548590,-581.86,0.0001452,2]
[42175,1714331548610,-608.78,0.0001452,2]
[42177,1714331548628,-500.0,0.0001452,2]
[42179,1714331548647,-500.0,0.0001452,2]
[42181,1714331548666,-810.35,0.0001452,2]
[42183,1714331548685,-500.0,0.0001452,2]
[42185,1714331548704,-500.0,0.0001452,2]
[42187,1714331548722,-625.09,0.0001452,2]
[42189,1714331548741,-726.49,0.0001452,2]
[42191,1714331548760,-500.0,0.0001452,2]
[42193,1714331548779,-534.78,0.0001452,2]
[42195,1714331548798,-500.0,0.0001452,2]
[42197,1714331548818,-682.92,0.0001452,2]
[42199,1714331548838,-1031.24,0.0001452,2]
[42201,1714331548856,-512.99,0.0001452,2]
[42202,1714331548866,-628.44,0.0001452,2]
[42203,1714331548875,-396.00721562,0.0001452,2]
[42205,1714331548895,-807.65,0.0001452,2]
[42206,1714331548905,-561.86,0.0001452,2]
[42207,1714331548914,-721.68,0.0001452,2]
[42208,1714331548924,-500.0,0.0001452,2]
[42209,1714331548934,-500.0,0.0001452,2]
[42211,1714331548953,-500.0,0.0001452,2]
[42213,1714331548972,-607.06,0.0001452,2]
[42215,1714331548991,-500.0,0.0001452,2]
[42217,1714331549010,-500.0,0.0001452,2]
[42219,1714331549028,-559.54,0.0001452,2]
[42221,1714331549047,-588.44,0.0001452,2]
[42223,1714331549066,-500.0,0.0001452,2]
[42225,1714331549159,-627.25,0.0001452,2]
[42227,1714331549177,-573.36,0.0001452,2]
[42229,1714331549195,-565.43,0.0001452,2]
[42231,1714331549215,-700.29,0.0001452,2]
[42233,1714331549233,-544.68,0.0001452,2]
[42235,1714331549252,-500.0,0.0001452,2]
[42237,1714331549270,-500.0,0.0001452,2]
[42239,1714331549289,-601.85,0.0001452,2]
[42241,1714331549308,-708.42,0.0001452,2]
[42243,1714331549326,-500.0,0.0001452,2]
[42245,1714331549347,-500.0,0.0001452,2]
[42247,1714331549369,-765.39,0.0001452,2]
[42249,1714331549392,-510.54,0.0001452,2]
[42251,1714331549411,-801.75,0.0001452,2]
[42253,1714331549431,-906.44,0.0001452,2]
[42255,1714331549450,-500.0,0.0001452,2]
[42257,1714331549468,-837.85,0.0001452,2]
[42259,1714331549487,-500.0,0.0001452,2]
[42261,1714331549508,-536.2,0.0001452,2]
[42263,1714331549526,-540.89,0.0001452,2]
[42265,1714331549544,-577.63,0.0001452,2]
[42267,1714331549562,-500.0,0.0001452,2]
[42269,1714331549580,-500.0,0.0001452,2]
[42271,1714331549599,-500.0,0.0001452,2]
[42273,1714331549617,-996.75,0.0001452,2]
[42275,1714331549636,-595.66,0.0001452,2]
[42277,1714331549655,-500.0,0.0001452,2]
[42279,1714331549673,-781.66,0.0001452,2]
[42281,1714331549691,-604.53,0.0001452,2]
[42283,1714331549711,-383.63,0.0001452,2]
[42285,1714331549729,-500.0,0.0001452,2]
[42287,1714331549751,-1007.48,0.0001452,2]
[42289,1714331549770,-532.51,0.0001452,2]
[42291,1714331549789,-986.84,0.0001452,2]
[42292,1714331549799,-598.01,0.0001452,2]
[42293,1714331549809,-489.61278901,0.0001452,2]
[42294,1714331549821,-625.85,0.0001452,2]
[42295,1714331549830,-805.9,0.0001452,2]
[42296,1714331549840,-1026.14,0.0001452,2]
[42297,1714331549849,-500.0,0.0001452,2]
[42299,1714331549870,-1492.28,0.0001452,2]
[42301,1714331549890,-622.52,0.0001452,2]
[42303,1714331549908,-1102.77,0.0001452,2]
[42305,1714331549928,-2683.52,0.0001452,2]
[42307,1714331549947,-757.63,0.0001452,2]
[42309,1714331549966,-1071.68,0.0001452,2]
[42311,1714331549984,-1126.91,0.0001452,2]
[42313,1714331550003,-768.45,0.0001452,2]
[42314,1714331550012,-500.0,0.0001452,2]
[42315,1714331550021,-500.0,0.0001452,2]
[42316,1714331550031,-729.6,0.0001452,2]
[42317,1714331550040,-1727.07,0.0001452,2]
[42318,1714331550050,-500.0,0.0001452,2]
[42319,1714331550059,-1439.12,0.0001452,2]
[42320,1714331550068,-560.22,0.0001452,2]
[42321,1714331550078,-2375.71,0.0001452,2]
[42322,1714331550087,-768.05,0.0001452,2]
[42323,1714331550096,-3328.96,0.0001452,2]
[42325,1714331550116,-1119.03,0.0001452,2]
[42327,1714331550135,-1829.87,0.0001452,2]
[42329,1714331550153,-555.53,0.0001452,2]
[42331,1714331550172,-630.70037636,0.0001452,2]
[42333,1714331550191,-2951.91,0.0001452,2]
[42335,1714331550211,-1806.02,0.0001452,2]
[42337,1714331550234,-495.33931737,0.0001452,2]
[42339,1714331550254,-16629.27,0.0001452,2]
[42341,1714331550272,-500.0,0.0001452,2]
[42342,1714331550282,-925.51,0.0001452,2]
[42343,1714331550291,-850.01,0.0001452,2]
[42344,1714331550300,-5159.18,0.0001452,2]
[42345,1714331550309,-2107.3,0.0001452,2]
[42346,1714331550319,-863.14,0.0001452,2]
[42347,1714331550328,-1434.31,0.0001452,2]
[42348,1714331550337,-557.08,0.0001452,2]
[42349,1714331550347,-925.79,0.0001452,2]
[42350,1714331550356,-1145.96,0.0001452,2]
[42351,1714331550366,-674.92,0.0001452,2]
[42352,1714331550380,-823.49,0.0001452,2]
[42353,1714331550389,-4341.09,0.0001452,2]
[42354,1714331550398,-500.0,0.0001452,2]
[42355,1714331550408,-2859.93,0.0001452,2]
[42356,1714331550418,-632.02,0.0001452,2]
[42357,1714331550427,-500.0,0.0001452,2]
[42358,1714331550436,-1251.88,0.0001452,2]
[42359,1714331550446,-982.93,0.0001452,2]
[42361,1714331550467,-558.43,0.0001452,2]
[42363,1714331550485,-559.47,0.0001452,2]
[42365,1714331550503,-500.0,0.0001452,2]
[42367,1714331550521,-870.22,0.0001452,2]
[42369,1714331550539,-812.36,0.0001452,2]
[42371,1714331550558,-1319.84,0.0001452,2]
[42373,1714331550576,-532.65,0.0001452,2]
[42375,1714331550596,-625.97,0.0001452,2]
[42377,1714331550614,-5810.04,0.0001452,2]
[42378,1714331550623,-1754.95,0.0001452,2]
[42379,1714331550633,-1243.71,0.0001452,2]
[42381,1714331550652,-774.93,0.0001452,2]
[42383,1714331550671,-2615.87,0.0001452,2]
[42384,1714331550681,-534.65,0.0001452,2]
[42385,1714331550690,-956.53,0.0001452,2]
[42387,1714331550710,-1308.4,0.0001452,2]
[42389,1714331550729,-694.2,0.0001452,2]
[42391,1714331550747,-500.0,0.0001452,2]
[42393,1714331550766,-613.08,0.0001452,2]
[42395,1714331550784,-500.0,0.0001452,2]
[42397,1714331550804,-1711.83,0.0001452,2]
[42399,1714331550822,-1211.25,0.0001452,2]
[42401,1714331550842,-1062.05,0.0001452,2]
[42403,1714331550862,-500.0,0.0001452,2]
[42405,1714331550881,-829.71,0.0001452,2]
[42407,1714331550901,-579.0,0.0001452,2]
[42408,1714331550913,-500.0,0.0001452,2]
[42409,1714331550923,-500.0,0.0001452,2]
[42410,1714331550932,-531.05,0.0001452,2]
[42411,1714331550941,-3800.95,0.0001452,2]
[42412,1714331550950,-509.12,0.0001452,2]
[42413,1714331550960,-1489.82,0.0001452,2]
[42414,1714331550970,-2169.37,0.0001452,2]
[42415,1714331550979,-500.0,0.0001452,2]
[42416,1714331550988,-2292.13,0.0001452,2]
[42417,1714331550998,-894.45,0.0001452,2]
[42419,1714331551016,-11916.14,0.0001452,2]
[42420,1714331551025,-706.5,0.0001452,2]
[42421,1714331551035,-774.47,0.0001452,2]
[42422,1714331551043,-4212.02,0.0001452,2]
[42423,1714331551053,-973.0,0.0001452,2]
[42424,1714331551062,-1126.83,0.0001452,2]
[42425,1714331551071,-917.33,0.0001452,2]
[42427,1714331551090,-5235.42,0.0001452,2]
[42429,1714331551108,-438.53858407,0.0001452,2]
[42431,1714331551127,-500.0,0.0001452,2]
[42432,1714331551137,-1401.31,0.0001452,2]
[42433,1714331551146,-500.0,0.0001452,2]
[42434,1714331551155,-235.67495976,0.0001452,2]
[42435,1714331551165,-860.55,0.0001452,2]
[42437,1714331551184,-1049.2,0.0001452,2]
[42439,1714331551203,-524.08,0.0001452,2]
[42441,1714331551222,-723.16,0.0001452,2]
[42443,1714331551240,-761.59,0.0001452,2]
[42445,1714331551259,-209.79096584,0.0001452,2]
[42447,1714331551277,-951.73,0.0001452,2]
[42449,1714331551296,-8626.56,0.0001452,2]
[42451,1714331551314,-619.85,0.0001452,2]
[42453,1714331551332,-766.16,0.0001452,2]
[42455,1714331551351,-500.0,0.0001452,2]
[42457,1714331551375,-526.35,0.0001452,2]
[42459,1714331551393,-1174.3,0.0001452,2]
[42461,1714331551411,-1939.82,0.0001452,2]
[42463,1714331551430,-566.88,0.0001452,2]
[42465,1714331551450,-2494.32,0.0001452,2]
[42467,1714331551469,-736.62,0.0001452,2]
[42469,1714331551487,-2923.81,0.0001452,2]
[42471,1714331551505,-1242.16,0.0001452,2]
[42473,1714331551524,-500.0,0.0001452,2]
[42474,1714331551532,-2897.29,0.0001452,2]
[42475,1714331551541,-1370.1,0.0001452,2]
[42477,1714331551560,-1204.37,0.0001452,2]
[42479,1714331551580,-20011.43,0.0001452,2]
[42481,1714331551599,-1538.14,0.0001452,2]
[42483,1714331551617,-8592.95,0.0001452,2]
[42485,1714331551636,-529.13,0.0001452,2]
[42487,1714331551654,-500.0,0.0001452,2]
[42489,1714331551673,-808.74,0.0001452,2]
[42491,1714331551692,-673.0,0.00014521,2]
[42493,1714331551711,-150.0,0.00014616,2]
[42494,1714331551721,-150.0,0.0001463,2]
[42495,1714331551731,-2100.0,0.00014649,2]
[42496,1714331551740,-300.527,0.00014649,2]
[42497,1714331551750,-328.71506121,0.00014665,2]
[42499,1714331551768,-655.9,0.0001473,3]
[42501,1714331551787,-150.0,0.00014769,2]
[42503,1714331551806,-300.0,0.0001478,2]
[42505,1714331551824,-300.0,0.0001478,2]
[42507,1714331551842,-300.0,0.0001478,2]
[42509,1714331551860,-109423.678737,0.00014781,7]
[42511,1714331551879,-150.0,0.00014787,2]
[42513,1714331551897,-625.22,0.00014794,2]
[42515,1714331551915,-240.69632321,0.00014794,2]
[42517,1714331551934,-500.0,0.00014794,2]
[42519,1714331551955,-529.75,0.00014794,2]
[42520,1714331551964,-500.0,0.00014794,2]
[42521,1714331551973,-597.62,0.00014794,2]
[42523,1714331551991,-500.0,0.00014794,2]
[42525,1714331552009,-500.0,0.00014794,2]
[42527,1714331552027,-405.84432631,0.00014794,2]
[42529,1714331552044,-610.03,0.00014794,2]
[42531,1714331552063,-500.0,0.00014794,2]
[42533,1714331552081,-500.0,0.00014794,2]